[Event "Titled Tuesday Blitz July 11 Early 2023"]
[White "Vlassov, Nikolai"]
[Black "Gorovets, Andrey"]
[WhiteFideId "4103360"]
[BlackFideId "13504037"]
[WhiteElo "2593"]
[BlackElo "2759"]
[Result "0-1"]
[Round "7"]
[TimeControl "180+2"]
[Date "2023.07.11"]
[WhiteClock "0:00:11"]
[BlackClock "0:00:36"]
[Board "37"]

1. e4 {[%clk 0:03:00]}  c5 {[%clk 0:02:59]} 2. c3 {[%clk 0:02:59]}  d5 {[%clk 0:02:56]} 3. exd5 {[%clk 0:02:59]}  Qxd5 {[%clk 0:02:57]} 4. d4 {[%clk 0:02:59]}  Nf6 {[%clk 0:02:57]} 5. Nf3 {[%clk 0:02:59]}  e6 {[%clk 0:02:58]} 6. a3 {[%clk 0:02:58]}  Nc6 {[%clk 0:02:47]} 7. Be3 {[%clk 0:02:58]}  cxd4 {[%clk 0:02:46]} 8. cxd4 {[%clk 0:02:59]}  Be7 {[%clk 0:02:46]} 9. Nc3 {[%clk 0:02:58]}  Qd6 {[%clk 0:02:46]} 10. Qc2 {[%clk 0:02:58]}  b6 {[%clk 0:02:37]} 11. Nb5 {[%clk 0:02:50]}  Qd7 {[%clk 0:02:35]} 12. Ne5 {[%clk 0:02:08]}  Nxe5 {[%clk 0:02:32]} 13. Nc7+ {[%clk 0:02:06]}  Kd8 {[%clk 0:02:33]} 14. Nxa8 {[%clk 0:01:49]}  Neg4 {[%clk 0:02:17]} 15. Bb5 {[%clk 0:01:35]}  Qd6 {[%clk 0:02:03]} 16. Rc1 {[%clk 0:01:10]}  Bb7 {[%clk 0:02:01]} 17. Bc6 {[%clk 0:01:10]}  Qxc6 {[%clk 0:01:43]} 18. Qxc6 {[%clk 0:01:09]}  Bxc6 {[%clk 0:01:44]} 19. Rxc6 {[%clk 0:01:09]}  Nd5 {[%clk 0:01:40]} 20. Ke2 {[%clk 0:01:01]}  Kd7 {[%clk 0:01:36]} 21. Rhc1 {[%clk 0:01:00]}  Rxa8 {[%clk 0:01:34]} 22. h3 {[%clk 0:01:00]}  Ngf6 {[%clk 0:01:14]} 23. Bd2 {[%clk 0:00:58]}  a5 {[%clk 0:01:13]} 24. R6c2 {[%clk 0:00:55]}  Ne8 {[%clk 0:01:10]} 25. Kd3 {[%clk 0:00:52]}  Nd6 {[%clk 0:01:10]} 26. g3 {[%clk 0:00:48]}  g5 {[%clk 0:01:10]} 27. Be1 {[%clk 0:00:43]}  h5 {[%clk 0:01:07]} 28. Rc6 {[%clk 0:00:39]}  Nb7 {[%clk 0:01:03]} 29. R6c2 {[%clk 0:00:38]}  Nd6 {[%clk 0:00:59]} 30. Bd2 {[%clk 0:00:37]}  b5 {[%clk 0:00:57]} 31. Be1 {[%clk 0:00:36]}  a4 {[%clk 0:00:53]} 32. Rc5 {[%clk 0:00:34]}  Rb8 {[%clk 0:00:51]} 33. R5c2 {[%clk 0:00:30]}  Nc4 {[%clk 0:00:51]} 34. Bd2 {[%clk 0:00:28]}  Rg8 {[%clk 0:00:47]} 35. Be1 {[%clk 0:00:27]}  h4 {[%clk 0:00:47]} 36. g4 {[%clk 0:00:27]}  Nf4+ {[%clk 0:00:47]} 37. Ke4 {[%clk 0:00:28]}  Nxh3 {[%clk 0:00:47]} 38. Rxc4 {[%clk 0:00:27]}  bxc4 {[%clk 0:00:47]} 39. Rxc4 {[%clk 0:00:28]}  Ra8 {[%clk 0:00:47]} 40. d5 {[%clk 0:00:26]}  Nf4 {[%clk 0:00:45]} 41. dxe6+ {[%clk 0:00:25]}  Nxe6 {[%clk 0:00:43]} 42. f3 {[%clk 0:00:25]}  Bd6 {[%clk 0:00:37]} 43. Kf5 {[%clk 0:00:11]}  h3 {[%clk 0:00:36]} 0-1


[Site "https://www.chess.com"]

[Event "Titled Tuesday Blitz July 11 Early 2023"]
[White "Altman, Joshua"]
[Black "Preotu, Razvan"]
[WhiteFideId "426210"]
[BlackFideId "2613280"]
[WhiteElo "2592"]
[BlackElo "2758"]
[Result "1-0"]
[Round "7"]
[TimeControl "180+2"]
[Date "2023.07.11"]
[WhiteClock "0:02:04"]
[BlackClock "0:00:40"]
[Board "38"]

1. d4 {[%clk 0:03:00]}  Nf6 {[%clk 0:02:59]} 2. c4 {[%clk 0:03:00]}  g6 {[%clk 0:02:59]} 3. Nc3 {[%clk 0:03:01]}  d5 {[%clk 0:03:00]} 4. Bg5 {[%clk 0:03:01]}  Ne4 {[%clk 0:02:59]} 5. Bh4 {[%clk 0:03:01]}  g5 {[%clk 0:02:41]} 6. Bg3 {[%clk 0:02:48]}  h5 {[%clk 0:02:39]} 7. Nxe4 {[%clk 0:02:45]}  dxe4 {[%clk 0:02:39]} 8. h4 {[%clk 0:02:46]}  g4 {[%clk 0:02:38]} 9. e3 {[%clk 0:02:45]}  Bg7 {[%clk 0:02:34]} 10. Ne2 {[%clk 0:02:45]}  c5 {[%clk 0:02:34]} 11. Qd2 {[%clk 0:02:38]}  Nc6 {[%clk 0:02:25]} 12. d5 {[%clk 0:02:33]}  Nb4 {[%clk 0:02:09]} 13. Nc3 {[%clk 0:02:32]}  Bf5 {[%clk 0:02:03]} 14. Be2 {[%clk 0:02:30]}  O-O {[%clk 0:01:39]} 15. O-O {[%clk 0:02:29]}  e6 {[%clk 0:01:39]} 16. a3 {[%clk 0:02:28]}  Na6 {[%clk 0:01:38]} 17. Rfd1 {[%clk 0:02:24]}  exd5 {[%clk 0:01:34]} 18. Nxd5 {[%clk 0:02:21]}  Rc8 {[%clk 0:01:26]} 19. Qc2 {[%clk 0:02:16]}  Qe8 {[%clk 0:01:23]} 20. Nf4 {[%clk 0:02:12]}  Bg6 {[%clk 0:01:01]} 21. Rd5 {[%clk 0:02:11]}  Nc7 {[%clk 0:00:59]} 22. Rxc5 {[%clk 0:02:06]}  b6 {[%clk 0:00:59]} 23. Rxc7 {[%clk 0:02:04]}  Rxc7 {[%clk 0:00:40]} 24. Nxg6 {[%clk 0:02:04]} 1-0


[Site "https://www.chess.com"]

[Event "Titled Tuesday Blitz July 11 Early 2023"]
[White "Concio, Michael Jr."]
[Black "Tologon tegin, Semetei"]
[WhiteFideId "5217873"]
[BlackFideId "13800574"]
[WhiteElo "2753"]
[BlackElo "2585"]
[Result "1-0"]
[Round "7"]
[TimeControl "180+2"]
[Date "2023.07.11"]
[WhiteClock "0:01:11"]
[BlackClock "0:00:07"]
[Board "39"]

1. e4 {[%clk 0:03:00]}  g6 {[%clk 0:02:56]} 2. Nc3 {[%clk 0:03:01]}  Bg7 {[%clk 0:02:57]} 3. Nge2 {[%clk 0:03:01]}  c5 {[%clk 0:02:52]} 4. g3 {[%clk 0:03:01]}  Nc6 {[%clk 0:02:53]} 5. Bg2 {[%clk 0:03:01]}  e6 {[%clk 0:02:53]} 6. O-O {[%clk 0:03:01]}  Nge7 {[%clk 0:02:54]} 7. d3 {[%clk 0:03:01]}  O-O {[%clk 0:02:53]} 8. Be3 {[%clk 0:03:00]}  Nd4 {[%clk 0:02:52]} 9. Qd2 {[%clk 0:03:01]}  d6 {[%clk 0:02:51]} 10. Rae1 {[%clk 0:02:59]}  e5 {[%clk 0:02:46]} 11. Nd1 {[%clk 0:02:58]}  Be6 {[%clk 0:02:43]} 12. c4 {[%clk 0:02:38]}  Qd7 {[%clk 0:02:41]} 13. Nxd4 {[%clk 0:02:37]}  cxd4 {[%clk 0:02:41]} 14. Bh6 {[%clk 0:02:38]}  Bh3 {[%clk 0:02:39]} 15. Bxg7 {[%clk 0:02:38]}  Kxg7 {[%clk 0:02:37]} 16. f4 {[%clk 0:02:38]}  Bxg2 {[%clk 0:02:37]} 17. Kxg2 {[%clk 0:02:39]}  f5 {[%clk 0:02:29]} 18. Nf2 {[%clk 0:02:36]}  Rae8 {[%clk 0:02:21]} 19. Kg1 {[%clk 0:02:31]}  Qc6 {[%clk 0:02:18]} 20. fxe5 {[%clk 0:02:17]}  dxe5 {[%clk 0:02:17]} 21. Qa5 {[%clk 0:02:17]}  Nc8 {[%clk 0:02:09]} 22. exf5 {[%clk 0:02:15]}  Rxf5 {[%clk 0:02:09]} 23. Ne4 {[%clk 0:02:15]}  b6 {[%clk 0:02:06]} 24. Qa3 {[%clk 0:02:10]}  Ref8 {[%clk 0:02:01]} 25. Rxf5 {[%clk 0:02:07]}  gxf5 {[%clk 0:01:54]} 26. Nf2 {[%clk 0:01:56]}  Re8 {[%clk 0:01:48]} 27. b4 {[%clk 0:01:54]}  Re7 {[%clk 0:01:35]} 28. Qc1 {[%clk 0:01:51]}  h6 {[%clk 0:01:33]} 29. b5 {[%clk 0:01:47]}  Qc5 {[%clk 0:01:31]} 30. Qd1 {[%clk 0:01:44]}  Nd6 {[%clk 0:01:30]} 31. Qh5 {[%clk 0:01:45]}  e4 {[%clk 0:01:25]} 32. dxe4 {[%clk 0:01:42]}  fxe4 {[%clk 0:01:26]} 33. Qg4+ {[%clk 0:01:38]}  Qg5 {[%clk 0:01:26]} 34. Qe2 {[%clk 0:01:32]}  e3 {[%clk 0:01:17]} 35. Nh3 {[%clk 0:01:32]}  Qf5 {[%clk 0:01:11]} 36. Nf4 {[%clk 0:01:31]}  Qc5 {[%clk 0:00:52]} 37. Qg4+ {[%clk 0:01:30]}  Kf7 {[%clk 0:00:44]} 38. Qg6+ {[%clk 0:01:28]}  Kf8 {[%clk 0:00:42]} 39. Rf1 {[%clk 0:01:21]}  Qf5 {[%clk 0:00:19]} 40. Ne6+ {[%clk 0:01:12]}  Rxe6 {[%clk 0:00:17]} 41. Rxf5+ {[%clk 0:01:11]}  Nxf5 {[%clk 0:00:17]} 42. Qxe6 {[%clk 0:01:10]}  Ne7 {[%clk 0:00:12]} 43. Qf6+ {[%clk 0:01:10]}  Ke8 {[%clk 0:00:11]} 44. Qxd4 {[%clk 0:01:10]}  e2 {[%clk 0:00:12]} 45. Qe4 {[%clk 0:01:11]}  e1=Q+ {[%clk 0:00:07]} 46. Qxe1 {[%clk 0:01:11]} 1-0


[Site "https://www.chess.com"]

[Event "Titled Tuesday Blitz July 11 Early 2023"]
[White "Geivondian, Arman"]
[Black "Papasimakopoulos, Alexandros"]
[WhiteFideId "24102032"]
[BlackFideId "4244125"]
[WhiteElo "2578"]
[BlackElo "2729"]
[Result "0-1"]
[Round "7"]
[TimeControl "180+2"]
[Date "2023.07.11"]
[WhiteClock "0:00:10"]
[BlackClock "0:00:11"]
[Board "42"]

1. e4 {[%clk 0:03:00]}  e6 {[%clk 0:02:59]} 2. d4 {[%clk 0:03:00]}  d5 {[%clk 0:03:00]} 3. Nc3 {[%clk 0:03:00]}  Bb4 {[%clk 0:02:59]} 4. e5 {[%clk 0:03:01]}  c5 {[%clk 0:02:59]} 5. Bd2 {[%clk 0:03:02]}  Ne7 {[%clk 0:02:58]} 6. Nb5 {[%clk 0:03:01]}  Bxd2+ {[%clk 0:02:59]} 7. Qxd2 {[%clk 0:03:02]}  O-O {[%clk 0:02:59]} 8. dxc5 {[%clk 0:03:02]}  Nd7 {[%clk 0:02:58]} 9. b4 {[%clk 0:03:02]}  Nxe5 {[%clk 0:02:57]} 10. f4 {[%clk 0:03:02]}  N5c6 {[%clk 0:02:52]} 11. Nf3 {[%clk 0:02:58]}  a5 {[%clk 0:02:51]} 12. c3 {[%clk 0:02:57]}  b6 {[%clk 0:02:51]} 13. Bd3 {[%clk 0:02:52]}  axb4 {[%clk 0:02:46]} 14. cxb4 {[%clk 0:02:53]}  bxc5 {[%clk 0:02:47]} 15. bxc5 {[%clk 0:02:54]}  Qa5 {[%clk 0:02:43]} 16. Qxa5 {[%clk 0:02:40]}  Rxa5 {[%clk 0:02:41]} 17. Kd2 {[%clk 0:02:40]}  Ba6 {[%clk 0:02:40]} 18. a4 {[%clk 0:02:39]}  Nb4 {[%clk 0:02:33]} 19. Be2 {[%clk 0:02:37]}  Nec6 {[%clk 0:02:31]} 20. Rhc1 {[%clk 0:02:30]}  Ra8 {[%clk 0:02:25]} 21. Ne5 {[%clk 0:02:06]}  Bb7 {[%clk 0:02:16]} 22. Nd6 {[%clk 0:02:02]}  Ba6 {[%clk 0:02:09]} 23. Nb5 {[%clk 0:01:55]}  f6 {[%clk 0:02:06]} 24. Nd7 {[%clk 0:01:53]}  Bxb5 {[%clk 0:02:03]} 25. Bxb5 {[%clk 0:01:53]}  Nd4 {[%clk 0:02:01]} 26. Kc3 {[%clk 0:01:39]}  Nbc6 {[%clk 0:01:27]} 27. Bxc6 {[%clk 0:01:35]}  Nxc6 {[%clk 0:01:27]} 28. Kb3 {[%clk 0:01:34]}  Kf7 {[%clk 0:01:24]} 29. Nb6 {[%clk 0:01:34]}  R8a6 {[%clk 0:01:23]} 30. Rab1 {[%clk 0:01:31]}  d4 {[%clk 0:01:22]} 31. Kc4 {[%clk 0:01:30]}  e5 {[%clk 0:01:22]} 32. fxe5 {[%clk 0:01:30]}  fxe5 {[%clk 0:01:23]} 33. Kd5 {[%clk 0:01:30]}  Nd8 {[%clk 0:01:09]} 34. Kxe5 {[%clk 0:01:29]}  Ne6 {[%clk 0:01:08]} 35. Kd5 {[%clk 0:01:25]}  d3 {[%clk 0:01:07]} 36. Rf1+ {[%clk 0:01:24]}  Ke7 {[%clk 0:01:07]} 37. Rb5 {[%clk 0:01:16]}  Nc7+ {[%clk 0:00:58]} 38. Kc6 {[%clk 0:01:16]}  Nxb5 {[%clk 0:00:58]} 39. axb5 {[%clk 0:01:17]}  Ra1 {[%clk 0:00:58]} 40. Rf3 {[%clk 0:01:09]}  d2 {[%clk 0:00:55]} 41. Rd3 {[%clk 0:01:08]}  R6a2 {[%clk 0:00:55]} 42. Nd5+ {[%clk 0:01:07]}  Kf7 {[%clk 0:00:52]} 43. Ne3 {[%clk 0:00:35]}  Re1 {[%clk 0:00:51]} 44. Nc4 {[%clk 0:00:23]}  d1=Q {[%clk 0:00:50]} 45. Rxd1 {[%clk 0:00:24]}  Rxd1 {[%clk 0:00:51]} 46. b6 {[%clk 0:00:25]}  Rc2 {[%clk 0:00:38]} 47. b7 {[%clk 0:00:21]}  Rd8 {[%clk 0:00:28]} 48. Kc7 {[%clk 0:00:17]}  Rf8 {[%clk 0:00:23]} 49. Nd6+ {[%clk 0:00:13]}  Ke6 {[%clk 0:00:23]} 50. c6 {[%clk 0:00:14]}  Kd5 {[%clk 0:00:14]} 51. Kd7 {[%clk 0:00:12]}  Rxc6 {[%clk 0:00:13]} 52. Nc8 {[%clk 0:00:12]}  Rf7+ {[%clk 0:00:11]} 53. Ne7+ {[%clk 0:00:11]}  Rxe7+ {[%clk 0:00:10]} 54. Kxe7 {[%clk 0:00:10]}  Rc7+ {[%clk 0:00:11]} 0-1


[Site "https://www.chess.com"]

[Event "Titled Tuesday Blitz July 11 Early 2023"]
[White "Schwabeneder, Florian"]
[Black "Michalczak, Thomas"]
[WhiteFideId "1626191"]
[BlackFideId "4622634"]
[WhiteElo "2726"]
[BlackElo "2576"]
[Result "1-0"]
[Round "7"]
[TimeControl "180+2"]
[Date "2023.07.11"]
[WhiteClock "0:02:07"]
[BlackClock "0:01:33"]
[Board "43"]

1. e4 {[%clk 0:03:00]}  e5 {[%clk 0:02:52]} 2. Nf3 {[%clk 0:03:00]}  Nc6 {[%clk 0:02:52]} 3. Bb5 {[%clk 0:03:00]}  a6 {[%clk 0:02:52]} 4. Ba4 {[%clk 0:03:00]}  Nf6 {[%clk 0:02:50]} 5. O-O {[%clk 0:02:59]}  Be7 {[%clk 0:02:49]} 6. d3 {[%clk 0:02:57]}  b5 {[%clk 0:02:48]} 7. Bb3 {[%clk 0:02:56]}  d6 {[%clk 0:02:48]} 8. Bd2 {[%clk 0:02:55]}  O-O {[%clk 0:02:43]} 9. h3 {[%clk 0:02:53]}  Nd7 {[%clk 0:02:10]} 10. a3 {[%clk 0:02:46]}  Nc5 {[%clk 0:02:08]} 11. Bd5 {[%clk 0:02:35]}  Qe8 {[%clk 0:01:56]} 12. b4 {[%clk 0:02:31]}  Ne6 {[%clk 0:01:54]} 13. a4 {[%clk 0:02:27]}  Rb8 {[%clk 0:01:54]} 14. axb5 {[%clk 0:02:27]}  axb5 {[%clk 0:01:55]} 15. c3 {[%clk 0:02:18]}  Nf4 {[%clk 0:01:47]} 16. Bxf4 {[%clk 0:02:09]}  exf4 {[%clk 0:01:48]} 17. d4 {[%clk 0:02:09]}  Be6 {[%clk 0:01:33]} 18. Bxc6 {[%clk 0:02:07]} 1-0


[Site "https://www.chess.com"]

[Event "Titled Tuesday Blitz July 11 Early 2023"]
[White "Jarovinsky, Alexey"]
[Black "Leon Oquendo, Jorge"]
[WhiteFideId "14115131"]
[BlackFideId "3514803"]
[WhiteElo "2722"]
[BlackElo "2569"]
[Result "1-0"]
[Round "7"]
[TimeControl "180+2"]
[Date "2023.07.11"]
[WhiteClock "0:00:24"]
[BlackClock "0:00:00"]
[Board "45"]

1. Nc3 {[%clk 0:03:00]}  c5 {[%clk 0:02:53]} 2. e4 {[%clk 0:03:00]}  Nc6 {[%clk 0:02:53]} 3. Bb5 {[%clk 0:02:52]}  e6 {[%clk 0:02:53]} 4. Bxc6 {[%clk 0:02:51]}  bxc6 {[%clk 0:02:53]} 5. d3 {[%clk 0:02:49]}  d5 {[%clk 0:02:51]} 6. Nf3 {[%clk 0:02:31]}  Nf6 {[%clk 0:02:51]} 7. O-O {[%clk 0:02:30]}  Be7 {[%clk 0:02:51]} 8. b3 {[%clk 0:02:30]}  O-O {[%clk 0:02:51]} 9. Ba3 {[%clk 0:02:29]}  Qa5 {[%clk 0:02:36]} 10. Bb2 {[%clk 0:02:28]}  c4 {[%clk 0:02:15]} 11. e5 {[%clk 0:02:24]}  Nd7 {[%clk 0:02:11]} 12. dxc4 {[%clk 0:02:22]}  dxc4 {[%clk 0:02:11]} 13. Re1 {[%clk 0:02:20]}  Rd8 {[%clk 0:02:04]} 14. Qc1 {[%clk 0:02:18]}  Nb6 {[%clk 0:01:57]} 15. Ne4 {[%clk 0:02:08]}  Qd5 {[%clk 0:01:29]} 16. Qf4 {[%clk 0:02:05]}  c5 {[%clk 0:01:27]} 17. Nf6+ {[%clk 0:01:40]}  gxf6 {[%clk 0:00:43]} 18. exf6 {[%clk 0:01:39]}  Bf8 {[%clk 0:00:43]} 19. Re5 {[%clk 0:01:37]}  Qd7 {[%clk 0:00:29]} 20. Rae1 {[%clk 0:00:58]}  Bb7 {[%clk 0:00:28]} 21. Rg5+ {[%clk 0:00:56]}  Kh8 {[%clk 0:00:28]} 22. Ne5 {[%clk 0:00:55]}  Qe8 {[%clk 0:00:23]} 23. Qh4 {[%clk 0:00:47]}  Rd2 {[%clk 0:00:04]} 24. Rh5 {[%clk 0:00:42]}  Bh6 {[%clk 0:00:03]} 25. Rxh6 {[%clk 0:00:36]}  Qg8 {[%clk 0:00:03]} 26. g3 {[%clk 0:00:26]}  Rad8 {[%clk 0:00:00]} 27. Qh5 {[%clk 0:00:24]} 1-0


[Site "https://www.chess.com"]

[Event "Titled Tuesday Blitz July 11 Early 2023"]
[White "Kuzmin, Roman"]
[Black "Goryachkina, Aleksandra"]
[WhiteFideId "44134932"]
[BlackFideId "4147103"]
[WhiteElo "2559"]
[BlackElo "2721"]
[Result "1-0"]
[Round "7"]
[TimeControl "180+2"]
[Date "2023.07.11"]
[WhiteClock "0:00:15"]
[BlackClock "0:00:01"]
[Board "46"]

1. e4 {[%clk 0:03:00]}  c5 {[%clk 0:03:00]} 2. Nf3 {[%clk 0:03:01]}  e6 {[%clk 0:03:00]} 3. d4 {[%clk 0:03:01]}  cxd4 {[%clk 0:03:00]} 4. Nxd4 {[%clk 0:03:02]}  Nc6 {[%clk 0:03:00]} 5. Nc3 {[%clk 0:03:02]}  Qc7 {[%clk 0:03:01]} 6. Be3 {[%clk 0:03:02]}  a6 {[%clk 0:02:58]} 7. Qd2 {[%clk 0:03:03]}  Nf6 {[%clk 0:02:53]} 8. O-O-O {[%clk 0:03:03]}  Bb4 {[%clk 0:02:46]} 9. f3 {[%clk 0:03:03]}  b5 {[%clk 0:02:35]} 10. Bf4 {[%clk 0:03:03]}  Qb6 {[%clk 0:02:13]} 11. a3 {[%clk 0:02:34]}  Be7 {[%clk 0:02:11]} 12. Nxc6 {[%clk 0:02:34]}  dxc6 {[%clk 0:02:03]} 13. Bd6 {[%clk 0:02:30]}  Ra7 {[%clk 0:01:51]} 14. Bxe7 {[%clk 0:02:07]}  Rxe7 {[%clk 0:01:49]} 15. Qg5 {[%clk 0:02:07]}  O-O {[%clk 0:01:45]} 16. e5 {[%clk 0:02:07]}  h6 {[%clk 0:01:44]} 17. Qh4 {[%clk 0:02:07]}  Qe3+ {[%clk 0:01:43]} 18. Kb1 {[%clk 0:02:05]}  Qxe5 {[%clk 0:01:44]} 19. Bd3 {[%clk 0:02:03]}  Rd7 {[%clk 0:01:35]} 20. f4 {[%clk 0:01:43]}  Qc7 {[%clk 0:01:18]} 21. Rdf1 {[%clk 0:01:30]}  c5 {[%clk 0:01:17]} 22. g4 {[%clk 0:01:28]}  c4 {[%clk 0:00:29]} 23. g5 {[%clk 0:01:28]}  cxd3 {[%clk 0:00:29]} 24. gxf6 {[%clk 0:01:28]}  dxc2+ {[%clk 0:00:28]} 25. Kxc2 {[%clk 0:01:04]}  Rfd8 {[%clk 0:00:24]} 26. Rhg1 {[%clk 0:00:52]}  Rd2+ {[%clk 0:00:23]} 27. Kc1 {[%clk 0:00:51]}  Rxb2 {[%clk 0:00:13]} 28. Rxg7+ {[%clk 0:00:46]}  Kf8 {[%clk 0:00:13]} 29. Qg3 {[%clk 0:00:23]}  Ke8 {[%clk 0:00:07]} 30. Rg8+ {[%clk 0:00:21]}  Kd7 {[%clk 0:00:06]} 31. Rd1+ {[%clk 0:00:22]}  Kc6 {[%clk 0:00:06]} 32. Rdxd8 {[%clk 0:00:20]}  Bb7 {[%clk 0:00:04]} 33. Kxb2 {[%clk 0:00:19]}  Kb6 {[%clk 0:00:04]} 34. Qe3+ {[%clk 0:00:19]}  Ka5 {[%clk 0:00:03]} 35. Qd2 {[%clk 0:00:16]}  Qc4 {[%clk 0:00:02]} 36. Nd5+ {[%clk 0:00:15]}  Ka4 {[%clk 0:00:01]} 37. Nb6# {[%clk 0:00:15]} 1-0


[Site "https://www.chess.com"]

[Event "Titled Tuesday Blitz July 11 Early 2023"]
[White "Shturman, Arseniy"]
[Black "Wagner, Dennis"]
[WhiteFideId "34275797"]
[BlackFideId "24650684"]
[WhiteElo "2552"]
[BlackElo "2720"]
[Result "0-1"]
[Round "7"]
[TimeControl "180+2"]
[Date "2023.07.11"]
[WhiteClock "0:00:03"]
[BlackClock "0:00:12"]
[Board "47"]

1. e4 {[%clk 0:03:00]}  c5 {[%clk 0:02:59]} 2. Nf3 {[%clk 0:02:57]}  d6 {[%clk 0:02:59]} 3. d4 {[%clk 0:02:56]}  cxd4 {[%clk 0:03:00]} 4. Nxd4 {[%clk 0:02:57]}  Nf6 {[%clk 0:03:01]} 5. Nc3 {[%clk 0:02:57]}  a6 {[%clk 0:03:02]} 6. Rg1 {[%clk 0:02:57]}  g6 {[%clk 0:03:00]} 7. g4 {[%clk 0:02:55]}  Nc6 {[%clk 0:02:57]} 8. g5 {[%clk 0:02:51]}  Nd7 {[%clk 0:02:57]} 9. Be3 {[%clk 0:02:51]}  h6 {[%clk 0:02:54]} 10. h4 {[%clk 0:02:43]}  hxg5 {[%clk 0:02:54]} 11. hxg5 {[%clk 0:02:36]}  Bg7 {[%clk 0:02:54]} 12. Qd2 {[%clk 0:02:36]}  Nde5 {[%clk 0:02:54]} 13. Be2 {[%clk 0:02:33]}  Ng4 {[%clk 0:02:51]} 14. Bxg4 {[%clk 0:02:25]}  Bxg4 {[%clk 0:02:45]} 15. f3 {[%clk 0:02:18]}  Bd7 {[%clk 0:01:51]} 16. O-O-O {[%clk 0:02:18]}  Ne5 {[%clk 0:01:49]} 17. b3 {[%clk 0:02:02]}  Qa5 {[%clk 0:01:47]} 18. Kb2 {[%clk 0:01:57]}  Rc8 {[%clk 0:01:36]} 19. Rgf1 {[%clk 0:01:28]}  Rh2 {[%clk 0:01:25]} 20. Qe1 {[%clk 0:00:44]}  Qb4 {[%clk 0:01:05]} 21. Bg1 {[%clk 0:00:34]}  Nc4+ {[%clk 0:00:43]} 22. Kb1 {[%clk 0:00:17]}  Na3+ {[%clk 0:00:28]} 23. Kb2 {[%clk 0:00:12]}  Nxc2 {[%clk 0:00:22]} 24. Nxc2 {[%clk 0:00:03]}  Bxc3+ {[%clk 0:00:21]} 25. Kb1 {[%clk 0:00:03]}  Rxc2 {[%clk 0:00:20]} 26. Kxc2 {[%clk 0:00:01]}  Bxe1+ {[%clk 0:00:20]} 27. Kd3 {[%clk 0:00:02]}  Bb5+ {[%clk 0:00:18]} 28. Ke3 {[%clk 0:00:02]}  Rc3+ {[%clk 0:00:15]} 29. Kf4 {[%clk 0:00:02]}  e5+ {[%clk 0:00:12]} 30. Kg4 {[%clk 0:00:03]}  Bd7# {[%clk 0:00:12]} 0-1


[Site "https://www.chess.com"]

[Event "Titled Tuesday Blitz July 11 Early 2023"]
[White "Haszon, David"]
[Black "Matinian, Nikita"]
[WhiteFideId "733610"]
[BlackFideId "24129100"]
[WhiteElo "2528"]
[BlackElo "2704"]
[Result "0-1"]
[Round "7"]
[TimeControl "180+2"]
[Date "2023.07.11"]
[WhiteClock "0:00:48"]
[BlackClock "0:01:55"]
[Board "48"]

1. d4 {[%clk 0:03:00]}  Nf6 {[%clk 0:02:59]} 2. Bf4 {[%clk 0:02:58]}  g6 {[%clk 0:02:58]} 3. Nc3 {[%clk 0:02:56]}  d5 {[%clk 0:02:59]} 4. Qd2 {[%clk 0:02:56]}  c6 {[%clk 0:02:59]} 5. f3 {[%clk 0:02:55]}  b5 {[%clk 0:02:57]} 6. O-O-O {[%clk 0:02:49]}  b4 {[%clk 0:02:56]} 7. Na4 {[%clk 0:02:49]}  a5 {[%clk 0:02:55]} 8. h4 {[%clk 0:02:30]}  Nbd7 {[%clk 0:02:42]} 9. g4 {[%clk 0:02:26]}  Ba6 {[%clk 0:02:41]} 10. e3 {[%clk 0:02:14]}  Bb5 {[%clk 0:02:39]} 11. Nc5 {[%clk 0:02:02]}  Nxc5 {[%clk 0:02:29]} 12. dxc5 {[%clk 0:02:03]}  e6 {[%clk 0:02:29]} 13. Be5 {[%clk 0:01:57]}  Rg8 {[%clk 0:02:28]} 14. Bxb5 {[%clk 0:01:53]}  cxb5 {[%clk 0:02:28]} 15. Qd3 {[%clk 0:01:44]}  Rb8 {[%clk 0:02:23]} 16. Bxb8 {[%clk 0:01:42]}  Qxb8 {[%clk 0:02:22]} 17. g5 {[%clk 0:01:35]}  Nd7 {[%clk 0:02:16]} 18. e4 {[%clk 0:01:19]}  Nxc5 {[%clk 0:02:15]} 19. Qe3 {[%clk 0:01:10]}  dxe4 {[%clk 0:02:02]} 20. Rh2 {[%clk 0:00:48]}  Qxh2 {[%clk 0:01:55]} 0-1


[Site "https://www.chess.com"]

[Event "Titled Tuesday Blitz July 11 Early 2023"]
[White "WindWhistler11"]
[Black "djokovic74"]
[WhiteElo "2526"]
[BlackElo "2703"]
[Result "0-1"]
[Round "7"]
[TimeControl "180+2"]
[Date "2023.07.11"]
[WhiteClock "0:00:04"]
[BlackClock "0:00:07"]
[Board "49"]

1. Nf3 {[%clk 0:02:55]}  Nf6 {[%clk 0:02:59]} 2. g3 {[%clk 0:02:56]}  d5 {[%clk 0:02:59]} 3. c4 {[%clk 0:02:55]}  e6 {[%clk 0:02:59]} 4. Bg2 {[%clk 0:02:55]}  Be7 {[%clk 0:03:00]} 5. O-O {[%clk 0:02:55]}  O-O {[%clk 0:03:00]} 6. b3 {[%clk 0:02:55]}  d4 {[%clk 0:03:00]} 7. Bb2 {[%clk 0:02:56]}  c5 {[%clk 0:03:01]} 8. e3 {[%clk 0:02:57]}  Nc6 {[%clk 0:03:01]} 9. exd4 {[%clk 0:02:57]}  cxd4 {[%clk 0:03:02]} 10. Re1 {[%clk 0:02:58]}  Bc5 {[%clk 0:02:58]} 11. d3 {[%clk 0:02:57]}  Re8 {[%clk 0:02:52]} 12. a3 {[%clk 0:02:55]}  a5 {[%clk 0:02:52]} 13. Ne5 {[%clk 0:02:56]}  Nxe5 {[%clk 0:02:48]} 14. Rxe5 {[%clk 0:02:56]}  Nd7 {[%clk 0:02:48]} 15. Re1 {[%clk 0:02:48]}  e5 {[%clk 0:02:47]} 16. Nd2 {[%clk 0:02:44]}  Nf6 {[%clk 0:02:45]} 17. Nf3 {[%clk 0:02:24]}  Qc7 {[%clk 0:02:39]} 18. h3 {[%clk 0:02:14]}  h6 {[%clk 0:02:37]} 19. Nh4 {[%clk 0:02:00]}  Ra6 {[%clk 0:02:18]} 20. Bc1 {[%clk 0:01:52]}  g5 {[%clk 0:02:05]} 21. Nf3 {[%clk 0:01:49]}  Bf5 {[%clk 0:02:05]} 22. h4 {[%clk 0:01:43]}  g4 {[%clk 0:02:01]} 23. Nh2 {[%clk 0:01:39]}  Kg7 {[%clk 0:01:45]} 24. Rb1 {[%clk 0:01:28]}  e4 {[%clk 0:01:17]} 25. b4 {[%clk 0:01:25]}  axb4 {[%clk 0:01:15]} 26. axb4 {[%clk 0:01:26]}  Ba7 {[%clk 0:01:15]} 27. Bf4 {[%clk 0:01:24]}  Qd7 {[%clk 0:01:14]} 28. b5 {[%clk 0:00:37]}  Ra3 {[%clk 0:00:48]} 29. dxe4 {[%clk 0:00:29]}  Nxe4 {[%clk 0:00:48]} 30. Bxe4 {[%clk 0:00:25]}  Bxe4 {[%clk 0:00:28]} 31. b6 {[%clk 0:00:19]}  Bxb1 {[%clk 0:00:21]} 32. Rxe8 {[%clk 0:00:19]}  Qxe8 {[%clk 0:00:22]} 33. Qxb1 {[%clk 0:00:14]}  Bb8 {[%clk 0:00:18]} 34. Qc1 {[%clk 0:00:11]}  Qa4 {[%clk 0:00:15]} 35. Bxh6+ {[%clk 0:00:11]}  Kh7 {[%clk 0:00:11]} 36. Qg5 {[%clk 0:00:08]}  Ra1+ {[%clk 0:00:07]} 37. Kg2 {[%clk 0:00:08]}  Qc6+ {[%clk 0:00:08]} 38. f3 {[%clk 0:00:07]}  Qxh6 {[%clk 0:00:06]} 39. Qf5+ {[%clk 0:00:05]}  Qg6 {[%clk 0:00:07]} 40. Qc8 {[%clk 0:00:04]}  Qc2# {[%clk 0:00:07]} 0-1


[Site "https://www.chess.com"]